bitfinex-derivatives/quotes_SOLF0:USTF0_20251025
["timestamp","ask_amount","ask_price","bid_price","bid_amount"]
[1761384534573,1.50093234,193.73,193.67,2.6]
[1761384534874,3.96454466,193.72,193.67,2.6]
[1761384535173,2.67,193.73,193.67,65.58]
[1761384535373,3.9647069,193.72,193.68,2.8]
[1761384535576,2.67,193.72,193.68,2.8]
[1761384536173,2.67,193.75,193.68,2.8]
[1761384536374,3.96494426,193.74,193.68,2.8]
[1761384536571,3.96494426,193.73,193.68,2.8]
[1761384536766,2.67,193.75,193.68,2.8]
[1761384536973,3.96546161,193.74,193.68,2.8]
[1761384537173,2.67,193.75,193.68,2.8]
[1761384537472,3.96548699,193.74,193.68,2.8]
[1761384537672,2.67,193.75,193.68,2.8]
[1761384537874,3.96567173,193.74,193.68,2.8]
[1761384538074,2.67,193.75,193.68,2.8]
[1761384538375,3.96567209,193.74,193.68,2.8]
[1761384538577,2.67,193.75,193.68,2.8]
[1761384538871,3.96586101,193.74,193.68,2.8]
[1761384539178,2.67,193.75,193.68,2.8]
[1761384539379,3.96585994,193.74,193.68,2.8]
[1761384539681,2.67,193.75,193.68,2.8]
[1761384539876,3.96605576,193.74,193.68,2.8]
[1761384540182,2.67,193.75,193.68,2.8]
[1761384540481,3.96605576,193.74,193.68,2.8]
[1761384540779,2.67,193.75,193.68,2.8]
[1761384540983,3.96631097,193.74,193.68,2.8]
[1761384541177,2.67,193.75,193.68,2.8]
[1761384541380,3.9663099,193.74,193.68,2.8]
[1761384541578,2.67,193.75,193.68,2.8]
[1761384541779,3.96629167,193.74,193.68,2.8]
[1761384541973,2.67,193.75,193.68,2.8]
[1761384542170,3.96629059,193.74,193.68,2.8]
[1761384542378,2.67,193.75,193.68,2.8]
[1761384542580,3.96665918,193.74,193.68,2.8]
[1761384542778,2.67,193.75,193.68,2.8]
[1761384542975,3.96665883,193.74,193.68,2.8]
[1761384543283,2.67,193.72,193.69,62.98]
[1761384543675,2.67,193.72,193.69,65.66]
[1761384545487,3.96681026,193.71,193.69,65.66]
[1761384545685,2.67,193.72,193.69,65.66]
[1761384545880,3.96676482,193.71,193.69,65.66]
[1761384546080,2.67,193.72,193.69,65.66]
[1761384546281,3.96676482,193.71,193.69,65.66]
[1761384546485,2.67,193.72,193.7,2.68]
[1761384546782,2.67,193.7,193.69,62.98]
[1761384546988,4.49465658,193.75,193.7,2.68]
[1761384546989,2.67,193.74,193.7,2.68]
[1761384547178,2.67,193.72,193.7,2.68]
[1761384547375,2.67,193.72,193.71,62.96]
[1761384547581,2.67,193.72,193.7,2.68]
[1761384547776,2.67,193.72,193.71,62.96]
[1761384547981,6.63501076,193.72,193.71,62.96]
[1761384548489,2.84,193.71,193.69,2.76]
[1761384555092,2.84,193.71,193.69,65.72]
[1761384560094,2.84,193.73,193.7,2.76]
[1761384560293,3.96501037,193.72,193.7,2.76]
[1761384560495,3.96501037,193.71,193.7,2.76]
[1761384561598,3.96501037,193.71,193.7,65.72]
[1761384568897,6.80501037,193.71,193.7,62.96]
[1761384569703,3.96501037,193.71,193.7,65.72]
[1761384574205,3.96501037,193.71,193.7,2.76]
[1761384574506,3.96501037,193.71,193.7,65.7]
[1761384579110,2.84,193.74,193.7,65.7]
[1761384579111,2.84,193.74,193.71,2.86]
[1761384579308,3.91882025,193.73,193.71,2.86]
[1761384579506,3.91882025,193.72,193.71,2.86]
[1761384580705,4.51809892,193.75,193.71,2.86]
[1761384580911,2.78,193.78,193.71,2.86]
[1761384580912,4.51809892,193.77,193.71,2.86]
[1761384581106,2.78,193.75,193.71,2.86]
[1761384581305,3.91973026,193.74,193.71,2.86]
[1761384581507,2.78,193.75,193.71,2.86]
[1761384581805,3.91865447,193.74,193.71,2.86]
[1761384582009,2.78,193.75,193.71,2.86]
[1761384583716,2.78,193.77,193.71,2.86]
[1761384584009,2.78,193.75,193.71,2.86]
[1761384584608,3.91734552,193.74,193.71,2.86]
[1761384584812,2.78,193.75,193.71,2.86]
[1761384585009,3.91734634,193.74,193.71,2.86]
[1761384585316,2.78,193.75,193.71,2.86]
[1761384585515,3.91630425,193.74,193.71,2.86]
[1761384585809,2.78,193.75,193.71,2.86]
[1761384586014,3.91630617,193.74,193.71,2.86]
[1761384586209,6.69647545,193.75,193.73,2.86]
[1761384586408,2.78,193.75,193.74,62.94]
[1761384586611,6.69610643,193.75,193.74,62.94]
[1761384587516,3.91610643,193.75,193.74,65.8]
[1761384588208,6.69538415,193.77,193.75,2.86]
[1761384588415,3.91538415,193.76,193.75,2.86]
[1761384589322,6.69538415,193.78,193.75,2.86]
[1761384589517,3.91538415,193.77,193.75,2.86]
[1761384589716,2.78,193.77,193.75,2.86]
[1761384592217,2.78,193.78,193.75,2.86]
[1761384592419,3.91300343,193.77,193.75,2.86]
[1761384592721,2.78,193.78,193.75,2.86]
[1761384594419,6.6919056,193.78,193.75,2.86]
[1761384594620,2.78,193.77,193.75,2.86]
[1761384596017,2.78,193.78,193.75,2.86]
[1761384596318,2.78,193.77,193.75,2.86]
[1761384596510,111.54333536,193.8,193.75,2.86]
[1761384596711,6.69077668,193.79,193.75,2.86]
[1761384596907,3.91077668,193.78,193.75,2.86]
[1761384598428,3.91077668,193.79,193.75,2.86]
[1761384598617,111.54333536,193.8,193.75,2.86]
[1761384598822,114.32333536,193.8,193.75,2.86]
[1761384601133,2.78,193.8,193.75,2.86]
[1761384602634,2.74,193.78,193.74,62.9]
[1761384602830,2.74,193.77,193.74,62.9]
[1761384603030,2.74,193.77,193.7,2.66]
[1761384603231,2.74,193.77,193.71,65.56]
[1761384604940,2.74,193.77,193.72,62.9]
[1761384605141,2.74,193.76,193.72,62.9]
[1761384605342,2.74,193.76,193.72,65.56]
[1761384606238,3.90767645,193.76,193.72,65.56]
[1761384606439,2.74,193.75,193.72,65.56]
[1761384607539,2.74,193.75,193.72,62.9]
[1761384607744,2.74,193.75,193.73,2.66]
[1761384608146,2.74,193.75,193.74,20.46]
[1761384611438,2.74,193.75,193.68,2.77]
[1761384611643,2.74,193.75,193.69,41.59]
[1761384611644,2.86,193.74,193.69,41.59]
[1761384612039,2.86,193.74,193.7,2.77]
[1761384614942,2.86,193.74,193.66,2.77]
[1761384615142,2.86,193.74,193.67,62.9]
[1761384615342,2.86,193.73,193.67,62.9]
[1761384615746,2.86,193.73,193.67,65.67]
[1761384615946,2.86,193.73,193.67,2.77]
[1761384616143,2.86,193.73,193.67,65.67]
[1761384617251,6.78063473,193.73,193.67,65.67]
[1761384617453,2.86,193.72,193.67,2.77]
[1761384617748,2.86,193.72,193.67,65.67]
[1761384618341,2.86,193.72,193.68,2.77]
[1761384619353,2.86,193.71,193.68,2.77]
[1761384620250,2.86,193.71,193.62,4.6474]
[1761384620556,2.86,193.71,193.67,22.23]
[1761384623055,2.86,193.71,193.68,2.77]
[1761384630255,3.91738743,193.72,193.68,2.77]
[1761384630457,6.77738743,193.73,193.68,2.77]
[1761384630657,3.91738743,193.72,193.68,2.77]
[1761384630856,2.86,193.73,193.68,2.77]
[1761384631460,2.86,193.72,193.68,2.77]
[1761384631658,6.77717987,193.72,193.68,2.77]
[1761384631861,2.86,193.72,193.68,2.77]
[1761384632764,6.77678032,193.72,193.68,2.77]
[1761384632966,2.86,193.72,193.68,2.77]
[1761384640458,2.84,193.71,193.68,2.77]
[1761384641162,2.84,193.71,193.65,1.5009044]
[1761384641367,2.84,193.71,193.67,2.75]
[1761384644575,2.84,193.71,193.63,2.75]
[1761384644775,2.84,193.7,193.64,62.86]
[1761384644965,2.84,193.69,193.65,2.75]
[1761384651467,2.84,193.68,193.65,2.75]
[1761384651868,2.84,193.68,193.66,65.61]
[1761384655875,2.84,193.68,193.66,62.86]
[1761384656376,2.84,193.72,193.66,65.61]
[1761384656682,2.84,193.7,193.67,2.75]
[1761384656880,3.92099794,193.69,193.67,2.75]
[1761384657080,3.9217023,193.68,193.67,2.75]
[1761384657385,3.9217023,193.69,193.67,2.75]
[1761384657680,3.9217023,193.68,193.67,2.75]
[1761384657880,6.7617023,193.69,193.67,2.75]
[1761384658081,6.7617023,193.68,193.67,2.75]
[1761384658483,2.84,193.68,193.67,2.75]
[1761384659176,6.7617023,193.68,193.67,2.75]
[1761384659784,6.7617023,193.68,193.66,62.86]
[1761384659989,2.84,193.68,193.66,62.86]
[1761384660281,6.58266517,193.67,193.66,62.86]
[1761384660680,6.58266517,193.67,193.64,2.8]
[1761384660681,2.66,193.66,193.65,62.86]
[1761384660882,2.66,193.69,193.65,2.8]
[1761384661082,6.58159076,193.68,193.65,2.8]
[1761384661278,4.54857586,193.7,193.65,2.8]
[1761384661279,6.58159076,193.67,193.65,2.8]
[1761384661479,2.66,193.67,193.65,2.8]
[1761384661786,2.66,193.69,193.65,2.8]
[1761384661975,6.58194136,193.68,193.65,2.8]
[1761384662178,3.92194136,193.67,193.65,2.8]
[1761384662375,2.66,193.69,193.65,2.8]
[1761384662584,4.54857586,193.7,193.65,2.8]
[1761384662585,6.58193558,193.68,193.65,2.8]
[1761384662784,6.58193558,193.67,193.65,2.8]
[1761384662985,2.66,193.67,193.65,2.8]
[1761384663187,2.66,193.67,193.65,24.14]
[1761384665278,2.66,193.67,193.65,2.8]
[1761384670889,6.57969126,193.67,193.65,2.8]
[1761384671097,2.66,193.67,193.65,2.8]
[1761384671298,2.66,193.67,193.61,2.75]
[1761384671897,6.57939949,193.67,193.61,2.75]
[1761384672198,2.66,193.67,193.61,2.75]
[1761384672896,6.57901249,193.67,193.61,2.75]
[1761384673097,2.66,193.67,193.61,2.75]
[1761384673702,6.57837159,193.67,193.61,2.75]
[1761384673898,2.66,193.67,193.61,2.75]
[1761384674602,6.5785721,193.67,193.61,2.75]
[1761384674795,2.66,193.67,193.61,2.75]
[1761384675502,6.57856783,193.67,193.61,2.75]
[1761384675798,2.66,193.67,193.61,2.75]
[1761384676392,2.66,193.67,193.51,15.49]
[1761384676393,3.91838478,193.67,193.51,15.49]
[1761384676594,3.91838478,193.67,193.35,4.6539]
[1761384676595,2.78,193.57,193.33,12.7177588]
[1761384676794,2.78,193.57,193.3,12.7177588]
[1761384676795,2.78,193.54,193.3,12.7177588]
[1761384677004,2.78,193.52,193.4,1.5009044]
[1761384677303,2.78,193.5,193.43,1.5009044]
[1761384677500,2.78,193.5,193.44,7.38]
[1761384678201,2.78,193.5,193.0,245.0]
[1761384678202,2.78,193.5,193.36,1.5009044]
[1761384678392,2.78,193.5,193.37,15.18]
[1761384678596,2.78,193.5,193.38,2.27]
[1761384678797,2.78,193.5,193.39,2.27]
[1761384680099,1.5009044,193.47,193.39,2.27]
[1761384680408,1.5009044,193.47,193.41,2.27]
[1761384680903,4.2809044,193.47,193.43,2.27]
[1761384681706,2.78,193.46,193.44,26.42]
[1761384682605,2.78,193.46,193.42,2.27]
[1761384682807,2.78,193.46,193.44,37.52]
[1761384684000,2.78,193.46,193.35,4.6539]
[1761384684203,2.78,193.46,193.32,0.89958511]
[1761384684204,1.5009044,193.44,193.37,2.27]
[1761384684510,4.2809044,193.44,193.39,2.27]
[1761384684709,4.2809044,193.44,193.41,2.27]
[1761384685011,4.2809044,193.44,193.41,65.15]
[1761384685307,2.78,193.44,193.41,65.15]
[1761384685902,2.78,193.44,193.41,62.88]
[1761384686301,4.2809044,193.46,193.41,62.88]
[1761384686503,4.2809044,193.46,193.42,2.27]
[1761384688006,2.78,193.45,193.42,2.27]
[1761384689300,4.2809044,193.45,193.42,2.27]
[1761384691109,2.78,193.45,193.42,2.27]
[1761384691509,4.2809044,193.45,193.42,2.27]
[1761384694013,4.2809044,193.45,193.43,62.92]
[1761384695699,4.2809044,193.45,193.42,2.27]
[1761384695903,4.2809044,193.45,193.43,62.9]
[1761384696710,2.78,193.45,193.43,62.9]
[1761384697214,2.78,193.48,193.43,65.17]
[1761384697811,2.78,193.48,193.44,62.9]
[1761384698014,2.78,193.48,193.43,2.27]
[1761384698216,2.78,193.48,193.45,62.9]
[1761384699017,2.78,193.48,193.46,2.28]
[1761384701809,2.67,193.53,193.46,2.28]
[1761384703927,2.67,193.53,193.47,62.9]
[1761384705221,2.67,193.53,193.47,65.18]
[1761384706123,2.67,193.53,193.47,62.9]
[1761384706326,2.67,193.53,193.48,2.28]
[1761384710324,2.35197452,193.54,193.48,2.28]
[1761384710526,2.67,193.53,193.48,2.28]
[1761384711030,2.67,193.52,193.48,2.28]
[1761384713335,2.67,193.52,193.5,2.28]
[1761384713536,4.04102091,193.53,193.5,2.28]
[1761384713537,6.71102091,193.53,193.5,7.62]
[1761384713726,4.04102091,193.52,193.5,12.68]
[1761384713926,2.67,193.53,193.5,12.68]
[1761384714329,2.67,193.52,193.5,12.68]
[1761384714933,4.04490696,193.52,193.5,12.68]
[1761384715332,2.67,193.53,193.5,12.68]
[1761384715629,2.67,193.52,193.5,12.68]
[1761384715831,6.71490696,193.52,193.5,12.68]
[1761384716029,2.67,193.52,193.5,12.68]
[1761384716230,2.67,193.52,193.5,17.5]
[1761384716735,6.71986444,193.52,193.5,17.5]
[1761384716925,2.67,193.52,193.5,17.5]
[1761384717125,4.05300564,193.51,193.5,17.5]
[1761384717725,2.67,193.52,193.5,17.5]
[1761384718230,4.05651043,193.51,193.5,17.5]
[1761384719235,4.06482721,193.51,193.5,17.5]
[1761384727142,4.06482721,193.52,193.5,17.5]
[1761384727344,2.7,193.52,193.5,17.5]
[1761384727945,6.59034112,193.52,193.5,17.5]
[1761384728140,2.7,193.52,193.5,17.5]
[1761384728745,6.59024631,193.52,193.5,17.5]
[1761384728941,2.7,193.52,193.5,17.5]
[1761384729548,6.59025105,193.52,193.5,17.5]
[1761384729750,2.7,193.52,193.5,17.5]
[1761384730345,6.59039665,193.52,193.5,17.5]
[1761384730546,2.7,193.52,193.5,17.5]
[1761384731148,6.59193372,193.52,193.5,17.5]
[1761384731349,2.7,193.52,193.5,17.5]
[1761384732054,6.59217191,193.52,193.5,17.5]
[1761384732349,2.7,193.52,193.5,17.5]
[1761384733048,6.59239804,193.52,193.5,17.5]
[1761384733253,2.7,193.52,193.5,17.5]
[1761384734054,6.59266268,193.52,193.5,17.5]
[1761384734254,2.7,193.52,193.5,17.5]
[1761384734851,6.59297203,193.52,193.5,17.5]
[1761384735057,2.7,193.52,193.5,17.5]
[1761384735657,6.59297203,193.52,193.5,17.5]
[1761384735958,2.7,193.52,193.5,17.5]
[1761384736354,2.7,193.52,193.5,2.28]
[1761384736560,6.59332398,193.52,193.5,65.16]
[1761384736762,2.7,193.52,193.5,65.16]
[1761384737156,2.7,193.52,193.5,2.28]
[1761384737354,8.94592668,193.52,193.5,2.28]
[1761384737555,5.05197452,193.52,193.5,2.28]
[1761384737955,3.89392595,193.51,193.5,65.16]
[1761384738462,5.05197452,193.52,193.5,65.16]
[1761384739256,3.89500306,193.51,193.5,65.16]
[1761384741564,3.89500306,193.51,193.5,2.28]
[1761384741866,3.89500306,193.51,193.5,65.16]
[1761384742063,3.89500306,193.51,193.43,2.28]
[1761384742364,2.89,193.49,193.45,2.28]
[1761384742565,2.89,193.49,193.44,31.22]
[1761384742566,2.89,193.49,193.46,62.86]
[1761384742764,2.89,193.49,193.46,65.14]
[1761384742964,2.89,193.49,193.46,62.86]
[1761384743168,2.89,193.49,193.47,2.28]
[1761384744161,4.50770826,193.52,193.47,2.28]
[1761384744362,3.89870968,193.51,193.47,2.28]
[1761384744568,3.89870968,193.5,193.47,2.28]
[1761384744767,7.39942308,193.54,193.47,2.28]
[1761384745068,3.8987702,193.53,193.47,2.28]
[1761384745264,6.7887702,193.52,193.47,2.28]
[1761384745471,6.7887702,193.51,193.48,18.32]
[1761384745664,3.8987702,193.5,193.48,18.32]
[1761384745969,2.89,193.51,193.48,18.32]
[1761384746159,3.89898018,193.5,193.48,18.32]
[1761384746365,2.89,193.51,193.48,18.32]
[1761384746562,3.89909831,193.5,193.48,18.32]
[1761384746758,2.89,193.51,193.48,18.32]
[1761384746962,3.89909878,193.5,193.48,18.32]
[1761384747165,2.89,193.51,193.48,18.32]
[1761384747468,3.89909053,193.5,193.49,2.28]
[1761384750874,6.78909053,193.5,193.42,2.28]
[1761384751173,3.89909053,193.49,193.44,2.28]
[1761384751373,2.89,193.51,193.44,2.28]
[1761384751569,3.89918986,193.5,193.44,2.28]
[1761384751771,2.89,193.48,193.44,2.28]
[1761384751978,2.89,193.48,193.45,62.86]
[1761384752275,2.89,193.48,193.46,2.28]
[1761384752469,2.89,193.5,193.46,2.28]
[1761384752777,3.89869788,193.49,193.46,2.28]
[1761384752969,2.89,193.53,193.46,2.28]
[1761384752970,3.89869788,193.48,193.46,2.28]
[1761384753272,2.89,193.51,193.47,65.14]
[1761384753468,6.78841071,193.5,193.47,62.86]
[1761384753672,6.78841071,193.5,193.48,2.28]
[1761384753673,3.89841071,193.49,193.48,2.28]
[1761384753870,3.89841071,193.49,193.48,65.14]
[1761384754673,3.89841071,193.49,193.48,2.28]
[1761384758282,3.89841071,193.49,193.48,65.14]
[1761384759589,3.89841071,193.51,193.48,2.28]
[1761384759786,3.90346089,193.5,193.49,65.14]
[1761384759984,3.90346089,193.5,193.49,2.28]
[1761384760184,3.90346089,193.5,193.49,65.14]
[1761384761083,3.90346089,193.51,193.49,65.14]
[1761384761386,2.87,193.52,193.49,65.14]
[1761384761589,3.90348863,193.51,193.5,2.28]
[1761384764688,0.25559,193.55,193.51,2.28]
[1761384764879,3.9038966,193.54,193.51,2.28]
[1761384765079,0.25559,193.55,193.51,2.28]
[1761384765286,3.90408389,193.54,193.51,2.28]
[1761384765489,0.25559,193.55,193.53,2.28]
[1761384765681,3.90331139,193.54,193.53,2.28]
[1761384767284,0.25559,193.55,193.53,2.28]
[1761384768290,7.32608114,193.58,193.53,2.28]
[1761384768491,6.77124725,193.57,193.53,2.28]
[1761384768693,3.90124725,193.56,193.53,2.28]
[1761384768989,3.90124725,193.55,193.53,2.28]
[1761384769185,2.87,193.57,193.53,2.28]
[1761384769391,3.90066833,193.56,193.53,2.28]
[1761384769594,3.90066833,193.55,193.53,2.28]
[1761384769791,3.90066833,193.56,193.53,2.28]
[1761384770092,3.90066833,193.55,193.53,2.28]
[1761384770296,3.90066833,193.56,193.53,2.28]
[1761384770592,3.90066833,193.55,193.53,2.28]
[1761384770790,3.90066833,193.56,193.53,2.28]
[1761384771001,3.90066833,193.55,193.53,2.28]
[1761384771291,3.90066833,193.56,193.53,2.28]
[1761384771492,3.90066833,193.55,193.53,2.28]
[1761384771692,6.77066833,193.56,193.54,62.84]
[1761384771895,3.90066833,193.55,193.54,62.84]
[1761384772086,3.90066833,193.55,193.54,65.12]
[1761384772593,3.90066833,193.57,193.55,2.28]
[1761384772794,3.90066833,193.56,193.55,2.28]
[1761384775393,6.77066833,193.57,193.55,2.28]
[1761384775589,3.90066833,193.56,193.55,2.28]
[1761384778101,6.77066833,193.56,193.54,62.84]
[1761384778290,3.90066833,193.55,193.54,62.84]
[1761384778490,3.90066833,193.55,193.54,65.12]
[1761384779887,3.90066833,193.55,193.5,2.28]
[1761384780089,2.79,193.53,193.51,18.98]
[1761384781097,2.79,193.53,193.43,1.50435539]
[1761384781399,3.89766033,193.52,193.45,2.28]
[1761384781592,3.89766033,193.52,193.45,3.78435539]
[1761384781794,3.89766033,193.52,193.46,2.28]
[1761384782007,2.79,193.51,193.47,65.1]
[1761384783401,2.79,193.51,193.48,2.28]
[1761384786201,2.79,193.51,193.49,62.82]
[1761384787698,2.79,193.51,193.5,62.82]
[1761384789506,2.79,193.51,193.43,2.28]
[1761384789707,2.79,193.51,193.44,65.1]
[1761384790002,2.79,193.51,193.42,3.78435539]
[1761384790208,2.67,193.49,193.43,62.82]
[1761384790406,2.67,193.48,193.44,2.28]
[1761384791406,2.67,193.48,193.45,2.28]
[1761384791607,2.67,193.48,193.46,20.5]
[1761384791808,2.67,193.48,193.44,2.28]
[1761384792007,2.67,193.48,193.45,65.1]
[1761384792305,2.67,193.48,193.45,2.28]
[1761384792503,2.67,193.48,193.46,65.1]
[1761384792712,2.67,193.5,193.47,65.1]
[1761384793007,6.56235267,193.5,193.47,65.1]
[1761384793210,2.67,193.5,193.47,65.1]
[1761384793605,2.67,193.5,193.39,20.1429]
[1761384793606,2.67,193.5,193.45,62.82]
[1761384794103,2.67,193.49,193.45,65.1]
[1761384794300,2.67,193.48,193.45,65.1]
[1761384796109,2.67,193.48,193.45,62.82]
[1761384796308,1.50435539,193.52,193.46,2.28]
[1761384796309,2.67,193.5,193.46,2.28]
[1761384796496,2.67,193.5,193.48,2.28]
[1761384798907,2.67,193.5,193.47,62.82]
[1761384799604,2.67,193.5,193.45,2.28]
[1761384799815,2.67,193.49,193.46,62.82]
[1761384800112,2.67,193.5,193.46,62.82]
[1761384800510,2.67,193.49,193.46,62.82]
[1761384801604,2.67,193.49,193.45,2.28]
[1761384802010,2.67,193.49,193.46,16.98]
[1761384802513,2.67,193.5,193.46,2.28]
[1761384802714,2.67,193.48,193.45,24.56]
[1761384803911,2.67,193.48,193.45,26.84]
[1761384806116,2.67,193.48,193.45,2.28]
[1761384806410,2.67,193.48,193.29,0.89980608]
[1761384806615,2.67,193.48,193.41,2.28]
[1761384806813,2.67,193.47,193.41,2.28]
[1761384819031,2.67,193.47,193.35,2.35164829]
[1761384819032,2.63,193.45,193.35,2.28]
[1761384819227,3.89578949,193.45,193.35,2.28]
[1761384819427,2.35164829,193.47,193.35,2.28]
[1761384819428,2.63,193.44,193.35,2.28]
[1761384821639,2.63,193.43,193.35,2.28]
[1761384833040,2.63,193.43,193.32,4.6546]
[1761384833041,2.63,193.43,193.37,2.28]
[1761384833340,2.63,193.46,193.38,2.28]
[1761384833539,2.63,193.46,193.39,2.28]
[1761384834541,2.63,193.45,193.39,2.28]
[1761384836642,6.52807177,193.45,193.39,2.28]
[1761384836842,2.63,193.45,193.39,2.28]
[1761384837639,2.63,193.45,193.39,65.1]
[1761384837846,2.63,193.45,193.4,2.28]
[1761384838245,3.89857173,193.47,193.4,2.28]
[1761384838646,2.6,193.46,193.4,2.28]
[1761384839344,2.6,193.45,193.4,2.28]
[1761384845146,3.903094,193.45,193.41,65.08]
[1761384845349,2.6,193.44,193.41,62.8]
[1761384845752,2.6,193.44,193.4,62.8]
[1761384846150,2.6,193.44,193.4,65.08]
[1761384847553,2.6,193.44,193.41,2.28]
[1761384848152,2.6,193.44,193.4,65.08]
[1761384848848,2.86,193.43,193.4,2.28]
[1761384849044,2.86,193.43,193.4,65.08]
[1761384849955,2.86,193.43,193.41,2.28]
[1761384852160,2.86,193.43,193.41,65.08]
[1761384855057,2.86,193.43,193.35,2.28]
[1761384855259,2.86,193.43,193.37,2.28]
[1761384855652,2.86,193.43,193.39,2.28]
[1761384857967,2.86,193.43,193.4,65.08]
[1761384858668,2.86,193.43,193.41,2.28]
[1761384860761,3.90320193,193.45,193.41,2.28]
[1761384860965,3.90320193,193.44,193.41,2.28]
[1761384861169,2.86,193.48,193.41,2.28]
[1761384861369,6.76384139,193.47,193.41,2.28]
[1761384861573,2.86,193.45,193.41,2.28]
[1761384861765,3.90384139,193.44,193.41,2.28]
[1761384861962,2.86,193.45,193.41,2.28]
[1761384862267,3.90388333,193.44,193.41,2.28]
[1761384862467,2.86,193.45,193.41,2.28]
[1761384862664,3.90414852,193.44,193.41,2.28]
[1761384862860,2.86,193.44,193.41,2.28]
[1761384864172,4.37201706,193.49,193.41,2.28]
[1761384864373,2.86,193.47,193.41,2.28]
[1761384864572,3.90445413,193.48,193.41,2.28]
[1761384864573,3.90445413,193.46,193.41,2.28]
[1761384864775,6.76445413,193.45,193.41,2.28]
[1761384864974,3.90445413,193.44,193.41,2.28]
[1761384865273,2.86,193.45,193.41,2.28]
[1761384865473,6.76431671,193.44,193.42,2.28]
[1761384865675,2.86,193.44,193.42,2.28]
[1761384865868,2.86,193.44,193.42,44.72]
[1761384866167,2.86,193.44,193.42,42.44]
[1761384867476,2.86,193.44,193.39,2.28]
[1761384867670,2.86,193.44,193.41,65.06]
[1761384868071,2.86,193.44,193.42,2.28]
[1761384871175,2.86,193.44,193.41,62.78]
[1761384871376,2.86,193.44,193.41,65.06]
[1761384872074,2.86,193.44,193.41,2.28]
[1761384872779,2.86,193.44,193.4,65.06]
[1761384873378,2.86,193.44,193.41,2.28]
[1761384874381,2.86,193.44,193.41,44.7]
[1761384875979,2.86,193.44,193.41,2.28]
[1761384876173,3.90662634,193.43,193.41,2.28]
[1761384876373,2.86,193.44,193.41,2.28]
[1761384876577,3.90716857,193.43,193.41,2.28]
[1761384876775,2.86,193.44,193.41,2.28]
[1761384877075,3.90716858,193.43,193.41,2.28]
[1761384877273,2.86,193.44,193.41,2.28]
[1761384877471,3.90769138,193.43,193.41,2.28]
[1761384877780,2.86,193.44,193.41,2.28]
[1761384877981,3.91968135,193.43,193.41,2.28]
[1761384878177,2.86,193.44,193.41,2.28]